Cogmind - Beta 14 *** ADVENTURER MODE // 2024.12.17 @ 20:05:48 Player: Murdock2099 Result: Destroyed by G-47 Trooper with Particle Gun Performance ------------- Evolutions (1) 500 Regions Visited (4) 800 Robots Destroyed (12) 60 Value Destroyed (368) 368 Prototype IDs (0) 0 Alien Tech Used (0) 0 Bonus (85) 85 TOTAL SCORE: 1813 Bonus ------- Follower Combat Kills 85 Cogmind --------- Core Integrity 0/400 Matter 272/300 Energy 100/100 System Corruption 1% Temperature Cool (9) Movement Walking (120) Location -9/Mines Parts ------- > --- POWER (2) -------- (None) > --- PROPULSION (3) --- Aluminum Leg Aluminum Leg > --- UTILITY (2) ------ Small Storage Unit Weapon Shielding > --- WEAPON (2) ------- (None) > --- INVENTORY (8) ---- Visual Processing Unit Peak State ------------ > --- POWER ------------ Light Ion Engine Light Nuclear Core > --- PROPULSION ------- Aluminum Leg Aluminum Leg Backup Propulsion I > --- UTILITY ---------- Small Storage Unit Medium Matter Pod > --- WEAPON ----------- Assault Rifle Light Assault Rifle > --- INVENTORY -------- Visual Processing Unit Medium Laser Assault Rifle [Rating: 11] Favorites ----------- Power Light Ion Engine Engine Light Ion Engine Power Core Light Nuclear Core Propulsion Aluminum Leg Leg Aluminum Leg Hover Unit Backup Propulsion I Utility Small Storage Unit Storage Small Storage Unit Protection Weapon Shielding Weapon Assault Rifle Energy Gun Medium Laser Ballistic Gun Assault Rifle Build | -11 -10 -10 -9 -9 ------- Run | Yrd Mat Min Mat Min Slots Evolved 2 | . . . 2 . Power 1 | . . . 1 . Propulsion 1 | . . . 1 . Utility . | . . . . . Weapon . | . . . . . Parts Attached 15 | 6 1 . 3 5 Power 3 | 1 . . 2 . Engine 2 | 1 . . 1 . Core 1 | . . . 1 . Reactor . | . . . . . Propulsion 5 | 2 . . 1 2 Treads . | . . . . . Leg 5 | 2 . . 1 2 Wheel . | . . . . . Hover . | . . . . . Flight . | . . . . . Utility 3 | 1 1 . . 1 Device . | . . . . . Storage 2 | 1 1 . . . Processor . | . . . . . Hackware . | . . . . . Protection 1 | . . . . 1 Artifact . | . . . . . Weapon 4 | 2 . . . 2 Energy Gun 1 | . . . . 1 Energy Cannon . | . . . . . Ballistic Gun 3 | 2 . . . 1 Ballistic Cannon . | . . . . . Launcher . | . . . . . Special Weapon . | . . . . . Impact Weapon . | . . . . . Slashing Weapon . | . . . . . Piercing Weapon . | . . . . . Special Melee Weapon . | . . . . . Unidentified Prototypes . | . . . . . Parts Lost 9 | . . 1 . 8 Power 3 | . . 1 . 2 Propulsion 2 | . . . . 2 Utility 1 | . . . . 1 Weapon 3 | . . . . 3 Highest Loss Streak 8 | . . 1 . 8 To Critical Strikes . | . . . . . Average Slot Usage (%) 84 | . 89 98 88 63 Engine 10 | . 14 12 11 6 Core 5 | . . . 11 6 Leg 22 | . 28 28 21 15 Storage 21 | . 18 28 22 18 Ballistic Gun 22 | . 28 28 22 13 Peak Build Rating 11 | 6 7 7 11 10 Average Rating 7 | 3 6 6 10 6 On Entrance 5 | . 6 7 6 10 Naked Turns . | . . . . . Heaviest Build 19 | 11 13 13 18 19 Greatest Support 20 | 20 20 20 20 20 Greatest Overweight (x) 3 | . . . 2 3 Average Overweight (x) . | . . . . . Largest Inventory Capacity 8 | 8 8 8 8 8 Average Capacity 7 | 7 8 8 8 8 Most Carried 5 | 4 5 4 4 4 Average Carried 3 | 2 3 4 2 3 Final Capacity 8 | 8 8 8 8 8 Final Carried 4 | 2 4 4 4 1 Class Distribution -------------------- 100% | Mutant Dominant Class ---------------- Mutant | -10/Materials Mutant | -10/Mines Mutant | -9/Materials Mutant | -9/Mines Resources | -11 -10 -10 -9 -9 ----------- Run | Yrd Mat Min Mat Min Matter Collected 412 | 189 100 . . 123 Remotely . | . . . . . Salvage Created 407 | . 101 . 90 216 Parts 28 | . 13 . 5 10 Haulers Intercepted . | . . . . . Recyclers Shooed . | . . . . . Parts Field Recycled . | . . . . . Retrieved Matter . | . . . . . Parts Self-Destructed . | . . . . . Prevented . | . . . . . Kills | -11 -10 -10 -9 -9 ------- Run | Yrd Mat Min Mat Min Combat Hostiles Destroyed 11 | . 4 . 2 5 Guns 11 | . 4 . 2 5 Classes Destroyed 3 | . 2 . 1 . Watcher 1 | . . . 1 . Swarmer 2 | . 2 . . . Grunt 9 | . 2 . 2 5 Best Kill Streak 4 | . 2 . 2 4 Combat Bots Only 4 | . 2 . 2 4 Max Kills in Single Turn 2 | . 2 . 1 1 Gunslinging . | . . . . . Exploded . | . . . . . Melee . | . . . . . Uniques/NPCs Destroyed . | . . . . . Combat | -11 -10 -10 -9 -9 -------- Run | Yrd Mat Min Mat Min Hostile Shots Fired 212 | . 47 13 32 120 Missed 72 | . 23 6 10 33 Damage Taken 1307 | . 177 49 204 877 Core 467 | . 42 13 50 362 Absorbed by Shields . | . . . . . Ignored by Resistances 398 | . 54 14 59 271 Regen/Repaired (Parts) 69 | . . . 69 . Core Remaining (%) 89 | 100 . 78 . . Volleys Fired 41 | . 8 . 11 22 Largest 2 | . 2 . 2 2 Hottest 50 | . 40 . 40 50 Shots Fired 65 | . 16 . 22 27 Gun 65 | . 16 . 22 27 Cannon . | . . . . . Launcher . | . . . . . Special . | . . . . . Kinetic 56 | . 16 . 22 18 Thermal 9 | . . . . 9 Explosive . | . . . . . Electromagnetic . | . . . . . Robot Hit Streak 24 | . 7 . 4 24 Robot Miss Streak 2 | . 1 . 2 1 Penetration Max . | . . . . . Secondary Targets 1 | . 1 . . . Max Gunslinging Chain 1 | . 1 . . . Shots Hit Robots 51 | . 12 . 13 26 Core Hits 27 | . 9 . 7 11 Critical Kills . | . . . . . Critical Parts Destroyed . | . . . . . Critical Strikes . | . . . . . Melee Attacks . | . . . . . Impact . | . . . . . Slashing . | . . . . . Piercing . | . . . . . Sneak Attacks . | . . . . . Combat Hostiles . | . . . . . Follow-up Attacks . | . . . . . Damage Inflicted 574 | . 136 . 139 299 Guns 572 | . 134 . 139 299 Cannons . | . . . . . Explosions . | . . . . . Melee . | . . . . . Ramming 2 | . 2 . . . Kinetic 461 | . 134 . 139 188 Thermal 111 | . . . . 111 Explosive . | . . . . . Electromagnetic . | . . . . . Impact . | . . . . . Slashing . | . . . . . Piercing . | . . . . . Highest Corruption 1 | . . . 1 1 Average Corruption 1 | . . . 1 1 Corruption Purged . | . . . . . Corruption Blocked . | . . . . . Effects 1 | . . . . 1 Matter Fused 1 | . . . . 1 Overload Shots . | . . . . . Overflow Damage . | . . . . . Projectiles . | . . . . . Explosions . | . . . . . Melee . | . . . . . Knockbacks . | . . . . . Impact . | . . . . . Kinetic . | . . . . . Secondary . | . . . . . Self-Inflicted Damage . | . . . . . Shots . | . . . . . Rammed . | . . . . . Targets Rammed 1 | . 1 . . . Kicked 1 | . 1 . . . Crushed . | . . . . . Highest Temperature 73 | . 9 . 18 73 Average Temperature 24 | . 9 . 7 35 Received Heat Transfer 840 | . 36 . 129 675 Siege Activations . | . . . . . Robots Corrupted . | . . . . . Combat Hostiles . | . . . . . Parts Fried . | . . . . . Impact Corruptions . | . . . . . Robots Melted . | . . . . . Combat Hostiles . | . . . . . Parts Melted 4 | . . . . 4 Heat Transferred 246 | . . . . 246 Parts Sabotaged . | . . . . . Parts Stolen . | . . . . . Parts Stripped . | . . . . . Power Chain Reactions . | . . . . . Alert | -11 -10 -10 -9 -9 ------- Run | Yrd Mat Min Mat Min Peak Influence 133 | . 133 43 119 130 Initial 43 | . . 43 10 39 Average 62 | . 73 42 65 80 Maximum Alert Level . | . . . . . Low Security (%) 100 | 100 100 100 100 100 Level 1 . | . . . . . Level 2 . | . . . . . Level 3 . | . . . . . Level 4 . | . . . . . Level 5 . | . . . . . High Security . | . . . . . Max Security . | . . . . . Squads Dispatched 1 | . . . . 1 Investigation . | . . . . . Extermination . | . . . . . Reinforcement . | . . . . . Assault 1 | . . . . 1 Garrison . | . . . . . Intercept . | . . . . . Searches Triggered . | . . . . . Construction Impeded . | . . . . . Haulers Reinforced . | . . . . . Active Scanning Responses . | . . . . . Cargo Convoy Interrupts . | . . . . . Stealth | -11 -10 -10 -9 -9 --------- Run | Yrd Mat Min Mat Min Distress Signals 4 | . . . 4 . Communications Jammed . | . . . . . Distress Signals . | . . . . . Times Spotted 33 | . 7 3 11 12 Peak Tracking Total 11 | . 5 3 6 11 Tactical Retreats 2 | . . . 2 . Traps | -11 -10 -10 -9 -9 ------- Run | Yrd Mat Min Mat Min Traps Triggered 2 | . . . 2 . Indirectly . | . . . . . Trap Hack Attempts . | . . . . . Triggered . | . . . . . Disarmed . | . . . . . Reprogrammed . | . . . . . Reused . | . . . . . Traps Extracted . | . . . . . Installed . | . . . . . Triggered . | . . . . . Machines | -11 -10 -10 -9 -9 ---------- Run | Yrd Mat Min Mat Min Machines Disabled . | . . . . . Max in Single Turn . | . . . . . Machines Repaired . | . . . . . Machines Dismantled . | . . . . . Machines Sabotaged . | . . . . . Overloaded Fab Kills . | . . . . . Hacking | -11 -10 -10 -9 -9 --------- Run | Yrd Mat Min Mat Min Machines Accessed 2 | . 1 . 1 . Terminals 1 | . 1 . . . Fabricators . | . . . . . Repair Stations 1 | . . . 1 . Recycling Units . | . . . . . Scanalyzers . | . . . . . Garrison Access . | . . . . . Total Hacks 4 | . 1 . 3 . Successful 4 | . 1 . 3 . Failed . | . . . . . Catastrophic . | . . . . . Database Lockouts . | . . . . . Manual . | . . . . . Terminals 1 | . 1 . . . Fabricators . | . . . . . Repair Stations 3 | . . . 3 . Recycling Units . | . . . . . Scanalyzers . | . . . . . Garrison Access . | . . . . . Terminal Hacks 1 | . 1 . . . Emergency Access Points 1 | . 1 . . . Fabricator Hacks . | . . . . . Repair Station Hacks 3 | . . . 3 . Scan Component 1 | . . . 1 . Repair 1 | . . . 1 . Refit 1 | . . . 1 . Recycling Unit Hacks . | . . . . . Scanalyzer . | . . . . . Garrison Access Hacks . | . . . . . Unauthorized Hacks . | . . . . . Terminals . | . . . . . Fabricators . | . . . . . Repair Stations . | . . . . . Recycling Units . | . . . . . Scanalyzers . | . . . . . Garrison Access . | . . . . . Data Cores Recovered . | . . . . . Used . | . . . . . Hacking Detections 1 | . . . 1 . Full Trace Events . | . . . . . Feedback Events . | . . . . . Feedback Blocked . | . . . . . Robot Schematics Acquired . | . . . . . Robots Built . | . . . . . Authchips . | . . . . . Time . | . . . . . Total Robot Build Rating . | . . . . . Part Schematics Acquired . | . . . . . Parts Built . | . . . . . Authchips . | . . . . . Time . | . . . . . Total Part Build Rating . | . . . . . Parts Repaired 1 | . . . 1 . Time 26 | . . . 26 . Parts Recycled . | . . . . . Recycled Matter . | . . . . . Retrieved Matter . | . . . . . Retrieved Components . | . . . . . Parts Scanalyzed . | . . . . . Part Schematics Acquired . | . . . . . Parts Damaged . | . . . . . Bothacking | -11 -10 -10 -9 -9 ------------ Run | Yrd Mat Min Mat Min Used RIF Installer . | . . . . . Robots Hacked . | . . . . . Non-combat . | . . . . . Combat . | . . . . . Robot Hacks Applied . | . . . . . Relay Couplers Released . | . . . . . Fabnet Peak Effective % . | . . . . . Robots Rewired . | . . . . . Allies Hacked . | . . . . . Hacks Repelled . | . . . . . Allies | -11 -10 -10 -9 -9 -------- Run | Yrd Mat Min Mat Min Total Allies 1 | . . . . 1 Largest Group 1 | . . . . 1 Highest-Rated Group 31 | . . . . 31 Highest-Rated Ally 31 | . . . . 31 Total Orders . | . . . . . Ally Attacks 15 | . . . . 15 Total Damage 191 | . . . . 191 Kills 3 | . . . . 3 Allies Corrupted . | . . . . . Allies Melted . | . . . . . Intel | -11 -10 -10 -9 -9 ------- Run | Yrd Mat Min Mat Min Robot Analysis Total . | . . . . . Derelict Logs Recovered 2 | . . . . 2 Drone Launches . | . . . . . Drone Recoveries . | . . . . . Exploration | -11 -10 -10 -9 -9 ------------- Run | Yrd Mat Min Mat Min Turns Passed 954 | 73 205 112 366 198 Spaces Moved 666 | 56 147 94 254 115 Core 20 | 11 . . . 9 Treads . | . . . . . Legs 644 | 45 147 94 252 106 Wheels . | . . . . . Hover 2 | . . . 2 . Flight . | . . . . . Fastest Speed 50 | 50 120 120 120 120 Average Speed 119 | 106 120 120 121 122 Slowest Speed 250 | 120 120 120 250 200 Overloaded Moves . | . . . . . Propulsion Burnouts . | . . . . . Robots Hopped . | . . . . . Cave-ins Triggered . | . . . . . Exploration Rate (%) 23 | 4 34 23 28 30 Regions Visited 4 Branch Regions 2 Pre-discovered Areas . | . . . . . Known Exits Taken . | . . . . . Unknown Exits Taken 4 | 1 1 1 1 . Scrap Searched . | . . . . . Spaces Dug . | . . . . . Terrain Destroyed . | . . . . . Melee . | . . . . . Projectile . | . . . . . AOE . | . . . . . Terrain Rammed . | . . . . . Walls Destroyed . | . . . . . Machines Disabled . | . . . . . Actions | -11 -10 -10 -9 -9 --------- Run | Yrd Mat Min Mat Min Total 761 | 69 161 93 293 145 Wait 22 | . . . 22 . Move 662 | 55 146 93 253 115 Hop . | . . . . . Pick Up 17 | 8 4 . 3 2 Fast Attach . | . . . . . Attach 14 | 6 1 . 3 4 Detach . | . . . . . Swap 1 | . . . . 1 Drop 3 | . 1 . 1 1 Fire 41 | . 8 . 11 22 Melee . | . . . . . Ram . | . . . . . Kick 1 | . 1 . . . Crush . | . . . . . Escape Stasis . | . . . . . Rewire . | . . . . . Trap . | . . . . . Miscellaneous . | . . . . . Route ------- -11/Scrapyard -10/Materials -10/Mines -9/Materials -9/Mines History --------- Turn | Location | Event 24 | -11/Scrapyard | Discovered new exit (range 15) 74 | -11/Scrapyard | Entered Materials 152 | -10/Materials | Discovered new exit (range 16) 279 | -10/Materials | Entered Mines 308 | -10/Mines | Build established: Mutant 317 | -10/Mines | Discovered new exit (range 11) 391 | -10/Mines | Entered Materials 391 | -9/Materials | Evolved 2 slots: Power x1, Propulsion x1 623 | -9/Materials | Repaired Aluminum Leg 738 | -9/Materials | Discovered new exit (range 13) 757 | -9/Materials | Entered Mines 780 | -9/Mines | Met a Derelict bent on vengeance 790 | -9/Mines | Learned Materials emergency access door positions 807 | -9/Mines | Learned Materials emergency access door positions 810 | -9/Mines | Met a Derelict testing a Signal Generator 893 | -9/Mines | Core integrity fell below 50% 917 | -9/Mines | Core integrity fell below 20% 955 | -9/Mines | Lost 8 parts (2p2n1u3w) 955 | -9/Mines | Destroyed by G-47 Trooper with Particle Gun Last Messages --------------- G-34 Mercenary destroyed. G-47 Trooper destroyed. Assault Rifle destroyed. Acquired 39 matter. Critical hit (Burn: +37). Med. Matter Pod destroyed. G-34 Mercenary destroyed. Acquired 79 matter. Sml. Laser melted. Aluminum Leg melted. Heat Sink melted. Aluminum Leg melted. G-34 Mercenary destroyed. Acquired Aluminum Leg. Med. Laser destroyed. Acquired 5 matter. R-06 Scavenger collects Ion Engine. Acquired Aluminum Leg. System corrupted: Matter fused (-8). K-01 Serf collects debris. Map ----- +----------------------------------------------------+ | | | | | ?????????????????????????????????????????????????? | | ?????????????????????????????????????????????????? | | ??#????????????????###???????????????????????????? | | ? #???????????????## ##?????????????????????????? | | #???????????????# ##????????????????????????? | | #???????????????# ####?????????????????????? | | #???????????????## ##????????????????????? | | #????????????????### #????????????????????? | | ???????????????????## #????????????????????? | | ?????????????????????#!! [##????????????????????? | | ??????????????????????#*=###?????????????????????? | | ??????????????????????#[ #???????????????????????? | | ##????????????????#####%!#???????????????????????? | | #???????????????## #=%#???????????????????????? | | #???????????????# [%!#???????????????????????? | | #######?????????# #####???????????????????? | | ###???????# ##??????????????????? | | ###?????## #??????????????????? | | ##?????## ## #???????????????? | | #??????## % ###### #????????????? | | #???????#%#######?? #???????????? | | ### ##???????# #?## ##?? "% ?????????? | | ##?# ########## ### ##??# " ????????? | | ### ##??# u @ ##???######????????? | | #?# #???# ############### ##????????????????? | | ??# #???# #????????###??## ##???????????????? | | ??# ?? #???????## #?##gg #???????????????? | | ??###?### #???????# ## i #???????????????? | | ???????? #???????# ##???????????????? | | ???????# $ #???????## ##????????????????? | | ???????# ##????????### ####?????????????????? | | ???????# ????????????#######????????????????????? | | ???????# ???????????????????????????????????????? | | ???????# ???????????????????????????????????????? | | ???????# ???????????????????????????????????????? | | ???????###???????????????????????????????????????? | | ?????????????????????????????????????????????????? | | ?????????????????????????????????????????????????? | | ?????????????????????????????????????????????????? | | ?????????????????????????????????????????????????? | | ?????????????????????????????????????????????????? | | ?????????????????????????????????????????????????? | | ?????????????????????????????????????????????????? | | ?????????????????????????????????????????????????? | | ?????????????????????????????????????????????????? | | ?????????????????????????????????????????????????? | | ?????????????????????????????????????????????????? | | ?????????????????????????????????????????????????? | +----------------------------------------------------+ Best States ------------- Heat Dissipation 28 Energy Generation 19 Energy Capacity 185 Matter Stores 300 Matter Capacity 400 Sight Range 16 Terrain Scan Density 10 Resistance: KI 20 Resistance: TH 20 Resistance: EX 20 Resistance: EM 20 Resistance: I 20 Resistance: S 20 Resistance: P 20 Weapon Shielding 33 Evasion (%) 55 Offensive Hacking 10 Item Schematics ----------------- None Robot Schematics ------------------ None Fabricated ------------ Nothing Alien Tech Used ----------------- None Achievements -------------- None Challenges ------------ None Game ------ Seed CannonPropulsionAccelerator Manual? 0 Play Time 00:12:57 Cumulative 2.9 hours Start 2024.12.17 @ 19:54:44 End 2024.12.17 @ 20:05:48 Sessions 1 Manual Loads 0 Difficulty Adventurer Special Mode None Game No. 13 Rogue 0 Adventurer 13 Explorer 0 Win Type - Total 0 Types 0/0/0/0/0/0/0/0/0 Lore% 3 Gallery% 7 Achievement% 8 Wizard Run 0 Options --------- Layout 1 ASCII 0 Keyboard 0 Movement Numpad Keybinds 0 Fullscreen 1 Font 24/Smallcaps Map View 50x35 Zoom Use 0% Tactical HUD 0 Map Filters NONE Filters NONE Steam 1 RUN: 813238f1-8dd7-468a-b05b-29e7c7c4ad15